bitfinex/quotes_BTCUSD_20220204
["timestamp","ask_amount","ask_price","bid_price","bid_amount"]
[1643958197243,0.354402,38139.0,38128.0,0.25146848]
[1643958197444,0.345422,38134.0,38120.0,0.14175866]
[1643958197645,0.345362,38134.0,38127.0,0.0489]
[1643958197844,0.00614176,38139.0,38133.0,0.37567936]
[1643958197845,0.00608176,38139.0,38133.0,0.37567936]
[1643958198053,0.30630121,38139.0,38134.0,0.23819283]
[1643958198244,0.00584176,38139.0,38135.0,0.345449]
[1643958198444,0.345449,38136.0,38121.0,0.04715255]
[1643958198647,0.00584176,38139.0,38122.0,0.14892901]
[1643958198648,0.11761131,38131.0,38122.0,0.14892901]
[1643958198897,0.00584176,38139.0,38122.0,0.14892901]
[1643958198898,0.00095117,38139.0,38138.0,0.04715255]
[1643958199098,0.00077117,38139.0,38138.0,2.14152953]
[1643958199303,0.04946309,38169.0,38146.0,0.34076833]
[1643958199304,0.04274527,38152.0,38146.0,0.34076833]
[1643958199495,0.04274527,38152.0,38148.0,0.65]
[1643958199496,0.00104,38151.0,38148.0,0.65]
[1643958199697,0.00098,38151.0,38149.0,0.345477]
[1643958199897,0.00086,38151.0,38149.0,0.65704095]
[1643958200097,0.00074,38151.0,38149.0,0.65704095]
[1643958200296,0.04946309,38169.0,38149.0,0.65704095]
[1643958200297,0.04940309,38169.0,38149.0,0.65704095]
[1643958200501,0.21157291,38167.0,38162.0,0.48424455]
[1643958200698,0.1133,38194.0,38165.0,0.04999999]
[1643958200900,0.9989025,38179.0,38172.0,0.31335988]
[1643958201097,0.03803951,38177.0,38167.0,0.25146848]
[1643958201313,0.03803951,38177.0,38163.0,0.04999999]
[1643958201314,0.13960998,38189.0,38158.0,0.0483]
[1643958201315,0.04245866,38212.0,38176.0,1.59999998]
[1643958201502,0.04245866,38212.0,38202.0,0.04999999]
[1643958201503,0.065503,38208.0,38202.0,0.04999999]
[1643958201706,0.02411533,38223.0,38204.0,0.04999999]
[1643958201707,0.11577197,38221.0,38204.0,0.04999999]
[1643958201904,0.0073,38217.0,38205.0,0.0483]
[1643958202101,0.0483,38237.0,38199.0,0.09829999]
[1643958202303,0.6041,38256.0,38196.0,0.09999999]
[1643958202304,0.0011,38225.0,38200.0,0.25146848]
[1643958202501,0.08893397,38205.0,38197.0,0.25146848]
[1643958202764,0.0483,38218.0,38193.0,0.05]
[1643958202963,0.25146848,38217.0,38193.0,0.09999999]
[1643958203166,0.09537258,38216.0,38193.0,0.05]
[1643958203368,0.17398458,38202.0,38193.0,0.05]
[1643958203568,0.17398458,38202.0,38177.0,0.5159]
[1643958203569,0.09854397,38201.0,38183.0,0.05]
[1643958203764,0.17398458,38202.0,38184.0,0.30146847]
[1643958203765,0.10350665,38200.0,38184.0,0.30146847]
[1643958203967,0.10350665,38200.0,38183.0,0.05]
[1643958204163,0.09686024,38198.0,38181.0,0.01]
[1643958204364,0.09686024,38198.0,38191.0,0.01]
[1643958204365,0.10255145,38197.0,38191.0,0.01]
[1643958204568,0.0483,38198.0,38191.0,0.01]
[1643958204967,0.1,38193.0,38192.0,0.345118]
[1643958205264,0.0011,38207.0,38191.0,0.01]
[1643958205265,0.05,38214.0,38193.0,1.1]
[1643958205465,0.05,38214.0,38192.0,0.345118]
[1643958205466,0.0483,38198.0,38192.0,0.345118]
[1643958205666,0.39331537,38197.0,38191.0,0.01]
[1643958205869,0.10376634,38196.0,38191.0,0.01]
[1643958206067,0.05,38214.0,38191.0,0.01]
[1643958206068,0.065483,38227.0,38205.0,0.3]
[1643958206272,0.05,38238.0,38213.0,0.04999999]
[1643958206273,0.0011,38238.0,38213.0,0.04999999]
[1643958206509,0.0011,38238.0,38192.0,0.01883743]
[1643958206510,0.30127827,38227.0,38212.0,0.24525246]
[1643958206713,0.30127827,38227.0,38195.0,0.25146848]
[1643958206714,0.15466127,38216.0,38195.0,0.25146848]
[1643958206907,0.15466127,38216.0,38192.0,0.27030591]
[1643958206908,0.0483,38215.0,38192.0,0.27030591]
[1643958207112,0.00099933,38198.0,38192.0,0.3203059]
[1643958207407,0.00099933,38198.0,38193.0,0.345118]
[1643958207607,0.0483,38205.0,38194.0,0.25146848]
[1643958207811,0.07796295,38201.0,38194.0,0.345118]
[1643958208010,0.0483,38200.0,38194.0,0.345118]
[1643958208409,0.0483,38200.0,38196.0,0.0010294]
[1643958208611,0.0483,38200.0,38197.0,0.345118]
[1643958209317,0.0483,38200.0,38196.0,0.0010294]
[1643958209318,0.0010288,38218.0,38199.0,0.09999999]
[1643958209514,0.1141,38244.0,38216.0,0.04999999]
[1643958209515,0.1178,38238.0,38216.0,0.04999999]
[1643958209718,0.00102881,38218.0,38217.0,0.34281658]
[1643958209912,0.54975398,38246.0,38214.0,0.25]
[1643958210136,0.0483,38226.0,38223.0,0.18375284]
[1643958210337,0.14364073,38226.0,38223.0,0.18375284]
[1643958210535,0.14364073,38226.0,38217.0,0.29034427]
[1643958210737,0.14358073,38226.0,38218.0,0.345118]
[1643958210938,0.0755841,38225.0,38219.0,0.345118]
[1643958211139,0.04824,38224.0,38219.0,0.345118]
[1643958211340,0.04806,38224.0,38212.0,0.34281658]
[1643958211538,0.34281658,38223.0,38214.0,0.16870877]
[1643958211737,0.0755241,38225.0,38203.0,0.3]
[1643958211738,0.0754641,38225.0,38203.0,0.05]
[1643958211939,0.07907479,38208.0,38203.0,0.05]
[1643958212138,0.07895479,38208.0,38204.0,0.69033189]
[1643958212341,0.07883479,38208.0,38204.0,0.34521389]
[1643958212537,0.05674429,38235.0,38207.0,0.04999999]
[1643958212738,0.05674429,38235.0,38206.0,0.25]
[1643958212739,0.00668429,38235.0,38234.0,0.14755658]
[1643958212939,0.00098,38239.0,38226.0,0.04999999]
[1643958213137,0.00098,38239.0,38222.0,0.07101]
[1643958213138,0.16857086,38244.0,38227.0,0.33781658]
[1643958213339,0.00090794,38236.0,38225.0,0.00102825]
[1643958213538,0.08007483,38235.0,38228.0,0.22537642]
[1643958213738,0.08007483,38235.0,38225.0,0.00102825]
[1643958213739,0.07989483,38235.0,38225.0,0.00102825]
[1643958213999,0.07977483,38235.0,38225.0,0.00102825]
[1643958214198,0.22952967,38243.0,38217.0,0.34281658]
[1643958214199,0.08957876,38227.0,38217.0,0.34281658]
[1643958214402,0.22952967,38243.0,38213.0,0.55]
[1643958214403,0.07896545,38221.0,38213.0,0.55]
[1643958214599,0.04394,38226.0,38214.0,0.345118]
[1643958214799,0.1,38219.0,38209.0,0.34281658]
[1643958215005,0.1,38219.0,38202.0,0.05]
[1643958215006,0.1,38219.0,38206.0,0.34281658]
[1643958215007,0.10329852,38218.0,38206.0,0.34281658]
[1643958215199,0.1,38219.0,38207.0,1.14281658]
[1643958215200,0.08738395,38208.0,38207.0,1.14281658]
[1643958215399,0.08726395,38208.0,38207.0,0.54226401]
[1643958215600,0.08118395,38208.0,38207.0,0.345118]
[1643958215799,0.24164735,38218.0,38207.0,1.595118]
[1643958216001,0.34281658,38219.0,38207.0,1.25]
[1643958216200,0.34275658,38227.0,38207.0,1.595118]
[1643958216398,0.06730876,38217.0,38207.0,1.595118]
[1643958216599,0.06724876,38217.0,38207.0,1.25]
[1643958216905,0.49609358,38225.0,38215.0,0.25]
[1643958216906,0.01349647,38225.0,38215.0,0.25]
[1643958217203,0.06718876,38229.0,38217.0,0.29972732]
[1643958217404,0.06706876,38218.0,38212.0,0.34006104]
[1643958217657,0.005957,38232.0,38210.0,0.34066063]
[1643958217849,0.2786286,38233.0,38210.0,0.34006104]
[1643958218051,0.1731298,38238.0,38216.0,0.25]
[1643958218250,0.1731298,38238.0,38217.0,0.34006104]
[1643958218251,0.06676876,38234.0,38217.0,0.34006104]
[1643958218452,0.1731298,38238.0,38217.0,0.338717]
[1643958218651,0.011843,38237.0,38229.0,0.25]
[1643958218852,0.01,38249.0,38229.0,0.25]
[1643958218853,0.00214,38251.0,38231.0,1.45]
[1643958219152,0.05,38261.0,38231.0,1.45]
[1643958219153,0.044,38266.0,38246.0,0.32744395]
[1643958219356,0.14503241,38275.0,38249.0,0.05]
[1643958219552,0.003,38277.0,38253.0,0.14271112]
[1643958219553,0.18133704,38262.0,38253.0,0.14271112]
[1643958219753,0.18133704,38262.0,38242.0,0.05]
[1643958219754,0.34006104,38261.0,38242.0,0.05]
[1643958219951,0.15133704,38262.0,38239.0,0.05]
[1643958219952,0.051,38259.0,38239.0,0.05]
[1643958220153,0.001,38259.0,38238.0,0.25]
[1643958220352,0.34106104,38259.0,38239.0,0.3]
[1643958220552,0.34106104,38259.0,38240.0,0.05]
[1643958220751,0.001,38259.0,38243.0,0.25]
[1643958220953,0.34116104,38265.0,38245.0,1.45]
[1643958221152,0.08612074,38253.0,38243.0,0.25]
[1643958221403,0.10167596,38245.0,38238.0,0.3]
[1643958221698,0.08689148,38244.0,38239.0,0.00060685]
[1643958222294,0.044,38249.0,38239.0,0.00060685]
[1643958222295,0.34006104,38248.0,38239.0,0.00060685]
[1643958222495,0.33154514,38248.0,38239.0,0.00060685]
[1643958222699,0.14937545,38245.0,38235.0,0.19802478]
[1643958222898,0.15040728,38245.0,38239.0,0.001032]
[1643958223095,0.15040728,38245.0,38225.0,0.05]
[1643958223096,0.5,38242.0,38226.0,0.31823338]
[1643958223296,0.08707275,38228.0,38225.0,0.05]
[1643958223596,0.01999795,38235.0,38225.0,0.05]
[1643958223796,0.01999795,38235.0,38224.0,0.05]
[1643958223797,0.1,38234.0,38226.0,0.1]
[1643958223994,0.1,38234.0,38224.0,0.05]
[1643958223995,0.42,38236.0,38225.0,0.05]
[1643958224195,0.42,38236.0,38224.0,0.05]
[1643958224395,0.77374749,38235.0,38234.0,0.01999795]
[1643958224596,0.85,38234.0,38227.0,8e-05]
[1643958224801,0.36223338,38233.0,38227.0,8e-05]
[1643958224996,0.27915322,38232.0,38227.0,8e-05]
[1643958225241,0.36223338,38231.0,38228.0,0.00060625]
[1643958225437,0.36223338,38231.0,38213.0,0.00242596]
[1643958225438,1.45,38230.0,38213.0,0.00242596]
[1643958225738,0.32915322,38232.0,38214.0,0.05]
[1643958225739,0.36223338,38229.0,38214.0,0.05]
[1643958225937,0.1,38218.0,38213.0,0.00242596]
[1643958226238,0.1,38218.0,38208.0,0.05]
[1643958226437,0.044,38217.0,38206.0,0.55]
[1643958226636,0.044,38216.0,38211.0,0.05]
[1643958227038,0.044,38216.0,38206.0,0.55]
[1643958227238,0.3,38208.0,38201.0,0.06]
[1643958227438,0.24134753,38209.0,38201.0,0.06]
[1643958227638,0.12264911,38208.0,38201.0,0.01]
[1643958227842,0.12264911,38208.0,38201.0,0.0001]
[1643958228139,0.044,38208.0,38196.0,0.05]
[1643958228340,0.1,38204.0,38197.0,0.31097344]
[1643958228537,0.0736,38204.0,38198.0,0.344614]
[1643958228997,0.06265937,38204.0,38199.0,0.15327402]
[1643958229197,0.27228374,38203.0,38199.0,0.15327402]
[1643958229399,0.27228374,38203.0,38197.0,0.05]
[1643958229400,0.07598953,38196.0,38192.0,0.10517505]
[1643958229800,0.044,38202.0,38193.0,0.15076]
[1643958229997,0.044,38202.0,38192.0,0.20672654]
[1643958230196,0.044,38202.0,38195.0,0.10053]
[1643958230600,0.044,38202.0,38196.0,0.36231]
[1643958230903,0.07691188,38197.0,38196.0,0.36231]
[1643958231201,0.12091188,38197.0,38196.0,0.36231]
[1643958231599,0.09591188,38197.0,38196.0,0.36231]
[1643958231799,0.044,38197.0,38196.0,0.36231]
[1643958232201,0.044,38197.0,38196.0,0.90649529]
[1643958232637,0.044,38197.0,38196.0,0.30008129]
[1643958232834,0.044,38197.0,38196.0,0.24957129]
[1643958232835,0.00978387,38197.0,38196.0,0.24957129]
[1643958233237,0.00978387,38197.0,38196.0,0.71241129]
[1643958233435,0.2715984,38201.0,38196.0,0.71241129]
[1643958233636,0.044,38200.0,38196.0,0.35008129]
[1643958233836,0.2435984,38201.0,38197.0,0.05]
[1643958234036,0.044,38200.0,38196.0,0.19957129]
[1643958234237,0.1,38197.0,38196.0,0.19957129]
[1643958234737,0.1,38197.0,38192.0,0.00463505]
[1643958234937,0.1,38197.0,38195.0,0.00103145]
[1643958235337,0.1,38197.0,38192.0,0.0006665]
[1643958235535,0.1,38197.0,38192.0,0.0506665]
[1643958235740,0.07472996,38197.0,38195.0,0.16706809]
[1643958235936,0.06325255,38197.0,38195.0,0.16706809]
[1643958236803,0.06325255,38197.0,38196.0,0.344614]
[1643958237008,0.06325255,38197.0,38196.0,1.844614]
[1643958237207,0.06325255,38197.0,38196.0,0.344614]
[1643958237605,0.044,38204.0,38195.0,0.16706809]
[1643958238007,0.044,38204.0,38194.0,0.05]
[1643958238008,0.13937187,38204.0,38201.0,0.16917556]
[1643958238807,0.1,38203.0,38201.0,0.16917556]
[1643958239214,0.044,38210.0,38202.0,0.05]
[1643958239412,0.02056349,38214.0,38205.0,0.05]
[1643958239612,0.02056349,38214.0,38201.0,0.05]
[1643958240012,0.02056349,38214.0,38199.0,0.05]
[1643958240238,0.30679891,38204.0,38201.0,0.16613294]
[1643958240436,0.30679891,38204.0,38203.0,0.05]
[1643958240638,0.30679891,38204.0,38201.0,0.16613294]
[1643958240839,0.30679891,38204.0,38202.0,0.344614]
[1643958241240,0.30679891,38204.0,38201.0,0.16613294]
[1643958241838,0.32060782,38203.0,38201.0,0.16613294]
[1643958242138,0.1,38206.0,38201.0,0.16613294]
[1643958242139,0.33070328,38205.0,38201.0,0.16613294]
[1643958242338,0.30160825,38205.0,38201.0,0.16613294]
[1643958242538,0.30474939,38205.0,38201.0,0.16613294]
[1643958242738,0.23089174,38204.0,38201.0,0.16613294]
[1643958242938,0.3138139,38203.0,38201.0,0.16613294]
[1643958243138,0.18748787,38206.0,38202.0,0.344614]
[1643958243339,0.1,38206.0,38201.0,0.16613294]
[1643958243739,0.39492982,38213.0,38205.0,1.25]
[1643958243992,0.01840278,38214.0,38207.0,0.05]
[1643958244192,0.30230493,38212.0,38207.0,0.05]
[1643958244395,0.01840278,38214.0,38211.0,0.1826557]
[1643958244593,0.02135118,38223.0,38213.0,1.97369034]
[1643958244595,0.00096305,38216.0,38213.0,1.97369034]
[1643958244792,0.00096305,38216.0,38215.0,1.844614]
[1643958244992,0.00096305,38216.0,38215.0,2.04066655]
[1643958245494,0.02135118,38223.0,38215.0,2.04066655]
[1643958245794,0.02135118,38223.0,38222.0,0.75]
[1643958245994,0.02135118,38223.0,38222.0,1.44335773]
[1643958246197,0.3074674,38230.0,38223.0,1.45]
[1643958246391,0.3074674,38230.0,38229.0,0.3927385]
[1643958246593,0.08744208,38230.0,38227.0,0.05]
[1643958246791,0.08744208,38230.0,38224.0,0.05]
[1643958246792,0.38454808,38230.0,38224.0,0.05]
[1643958246992,0.30269118,38229.0,38222.0,0.02135118]
[1643958247193,0.08831143,38224.0,38222.0,0.02135118]
[1643958247390,0.29769118,38229.0,38222.0,0.02135118]
[1643958247647,0.297106,38230.0,38222.0,0.02135118]
[1643958247948,0.1,38229.0,38224.0,0.05]
[1643958248148,0.0009642,38228.0,38224.0,0.05]
[1643958248548,0.10494237,38226.0,38222.0,0.02135118]
[1643958248752,0.10494237,38226.0,38224.0,0.05]
[1643958249451,0.25496219,38226.0,38224.0,0.05]
[1643958249752,0.32556824,38226.0,38224.0,0.05]
[1643958249951,0.32556824,38226.0,38222.0,0.02135118]
[1643958250153,1.49963358,38225.0,38222.0,0.02135118]
[1643958250351,0.1,38224.0,38222.0,0.02135118]
[1643958250557,1.59963358,38225.0,38222.0,0.02135118]
[1643958250753,1.59963358,38225.0,38219.0,0.02128827]
[1643958250954,0.32763837,38220.0,38219.0,0.02128827]
[1643958251154,1.59951358,38225.0,38219.0,0.21628827]
[1643958251418,1.59933358,38225.0,38219.0,0.02128827]
[1643958251600,1.59921358,38225.0,38207.0,0.70956211]
[1643958251801,0.00079451,38224.0,38216.0,0.05]
[1643958252101,0.01128827,38220.0,38219.0,0.1778715]
[1643958252299,0.01128827,38220.0,38219.0,0.2378715]
[1643958252503,0.2518302,38220.0,38219.0,0.06]
[1643958252801,0.2518302,38220.0,38219.0,0.01]
[1643958253401,0.33344756,38220.0,38219.0,0.01]
[1643958253599,0.52706886,38220.0,38219.0,0.01]
[1643958253800,0.62706886,38220.0,38219.0,0.01]
[1643958254005,0.43652693,38220.0,38219.0,0.01]
[1643958254203,0.43652693,38220.0,38219.0,0.06]
[1643958254204,0.09290563,38220.0,38219.0,0.06]
[1643958254399,0.09290563,38220.0,38219.0,0.01]
[1643958254800,0.09290563,38220.0,38195.0,0.246]
[1643958254801,0.35,38219.0,38206.0,0.05]
[1643958255003,0.08787422,38206.0,38204.0,0.05]
[1643958255244,0.30139448,38218.0,38205.0,0.344857]
[1643958255444,0.31416836,38215.0,38212.0,0.05]
[1643958255644,0.36416836,38215.0,38212.0,0.05]
[1643958255945,0.344583,38213.0,38208.0,0.05]
[1643958256143,0.344583,38213.0,38212.0,0.05]
[1643958256344,0.344583,38213.0,38207.0,0.15154603]
[1643958256648,0.31416836,38215.0,38207.0,0.15154603]
[1643958256847,0.31416836,38215.0,38210.0,0.05]
[1643958257045,0.31416836,38215.0,38212.0,0.05]
[1643958257246,0.31416836,38215.0,38207.0,0.15154603]
[1643958257446,0.31416836,38215.0,38205.0,0.05]
[1643958257447,0.08738979,38203.0,38202.0,0.05]
[1643958257647,0.41416836,38215.0,38202.0,0.05]
[1643958257648,0.30139448,38213.0,38206.0,0.19105255]
[1643958257847,0.05,38214.0,38205.0,0.05]
[1643958258045,0.344583,38213.0,38205.0,0.05]
[1643958258246,0.23401379,38209.0,38204.0,0.31980317]
[1643958258447,0.344583,38208.0,38205.0,0.05]
[1643958258646,0.076606,38208.0,38205.0,0.05]
[1643958258898,0.076606,38208.0,38206.0,0.344857]
[1643958259093,0.076606,38208.0,38204.0,0.31980317]
[1643958259299,0.076606,38208.0,38205.0,0.05]
[1643958259300,0.344583,38207.0,38205.0,0.05]
[1643958259492,0.076606,38208.0,38206.0,0.344857]
[1643958259694,1.044583,38207.0,38198.0,0.01949776]
[1643958259896,0.344583,38205.0,38198.0,0.01949776]
[1643958260092,0.344583,38205.0,38200.0,0.00097782]
[1643958260293,0.05,38204.0,38201.0,0.05]
[1643958260593,0.09318207,38202.0,38201.0,0.05]
[1643958260794,0.82151309,38202.0,38201.0,0.05]
[1643958260995,0.47693009,38202.0,38200.0,0.00097782]
[1643958261194,0.344583,38200.0,38198.0,0.01949776]
[1643958261395,0.344583,38200.0,38197.0,0.09605255]
[1643958261396,0.42693009,38202.0,38196.0,0.05]
[1643958261596,0.47693009,38202.0,38194.0,0.30517172]
[1643958261799,0.47693009,38202.0,38193.0,0.24105255]
[1643958261800,0.82151309,38202.0,38193.0,0.24105255]
[1643958261997,0.344583,38200.0,38196.0,0.17244629]
[1643958262400,0.344583,38200.0,38192.0,0.00458073]
[1643958262401,0.344583,38198.0,38192.0,0.0006665]
[1643958262640,0.444583,38198.0,38196.0,0.00097842]
[1643958262841,0.344583,38197.0,38196.0,0.00097842]
[1643958263041,0.42736016,38197.0,38196.0,0.00097842]
[1643958263242,0.57736016,38197.0,38196.0,0.00097842]
[1643958263442,0.57736016,38197.0,38192.0,0.0006665]
[1643958263443,0.90896736,38197.0,38192.0,0.0006665]
[1643958263642,0.6098439,38196.0,38195.0,0.00060391]
[1643958263841,1.0544269,38196.0,38195.0,0.00060391]
[1643958264241,0.31020257,38196.0,38195.0,0.00060391]
[1643958264446,0.4862899,38196.0,38195.0,0.00060391]
[1643958264642,0.4862899,38196.0,38192.0,0.0006665]
[1643958264842,0.48775332,38195.0,38194.0,0.000978]
[1643958265044,0.53775332,38195.0,38194.0,0.000978]
[1643958265246,0.68775332,38195.0,38194.0,0.000978]
[1643958265842,0.68775332,38195.0,38192.0,0.0006665]
[1643958266044,0.210191,38193.0,38192.0,0.0006665]
[1643958266242,0.310191,38193.0,38192.0,0.0006665]
[1643958266697,0.2,38193.0,38192.0,0.0006665]
[1643958267001,0.15,38193.0,38192.0,0.0006665]
[1643958267796,0.260191,38193.0,38192.0,0.0006665]
[1643958268196,0.310191,38193.0,38192.0,0.0006665]
[1643958268395,0.410191,38193.0,38192.0,0.0006665]
[1643958268796,0.1,38200.0,38192.0,0.0006665]
[1643958268998,0.210191,38203.0,38199.0,0.05]
[1643958269197,0.01817407,38204.0,38202.0,0.05]
[1643958269396,0.210191,38203.0,38198.0,0.05]
[1643958269601,0.01817407,38204.0,38202.0,0.05]
[1643958269798,0.01817407,38204.0,38203.0,0.344935]
[1643958269997,0.01817407,38204.0,38203.0,0.53571755]
[1643958270244,0.01817407,38204.0,38203.0,0.489935]
[1643958270648,2.70773099,38220.0,38203.0,0.53571755]
[1643958270649,0.001,38220.0,38203.0,0.53571755]
[1643958270848,0.02138679,38216.0,38209.0,0.05]
[1643958271048,0.02138679,38216.0,38215.0,1.49078255]
[1643958271346,0.001,38220.0,38217.0,0.344935]
[1643958271547,0.001,38220.0,38219.0,0.69078255]
[1643958271746,0.001,38220.0,38219.0,0.344935]
[1643958271946,0.001,38220.0,38215.0,0.32814553]
[1643958271947,0.001,38220.0,38215.0,0.02138679]
[1643958272150,0.00368436,38220.0,38215.0,0.02138679]
[1643958272348,0.08229599,38218.0,38215.0,0.02138679]
[1643958272747,0.27644074,38218.0,38217.0,0.09578255]
[1643958272947,0.27644074,38218.0,38215.0,0.02138679]
[1643958272948,0.08229599,38218.0,38215.0,0.02138679]
[1643958273148,0.13229599,38218.0,38215.0,0.02138679]
[1643958273354,0.00368436,38220.0,38217.0,0.09578255]
[1643958273648,0.00368436,38220.0,38219.0,0.58571755]
[1643958273905,0.00368436,38220.0,38219.0,0.539935]
[1643958274300,0.00368436,38220.0,38219.0,0.58571755]
[1643958274502,0.00368436,38220.0,38219.0,0.539935]
[1643958274902,0.10706113,38220.0,38219.0,0.539935]
[1643958275303,0.15676463,38220.0,38219.0,0.539935]
[1643958275503,0.15676463,38220.0,38219.0,0.195]
[1643958275902,0.10706113,38220.0,38219.0,0.195]
[1643958276804,0.10706113,38220.0,38214.0,0.07031343]
[1643958276805,0.210191,38219.0,38214.0,0.07031343]
[1643958277003,0.19334571,38216.0,38214.0,0.07031343]
[1643958277207,0.210191,38215.0,38214.0,0.02031343]
[1643958277842,0.310191,38215.0,38214.0,0.02031343]
[1643958278044,0.310191,38215.0,38205.0,0.04078255]
[1643958278045,0.10194584,38214.0,38205.0,0.04078255]
[1643958278241,0.05,38212.0,38204.0,8.255e-05]
[1643958278450,0.04991745,38205.0,38200.0,0.00102914]
[1643958278644,0.04991745,38203.0,38202.0,0.02100332]
[1643958278942,0.13005622,38204.0,38202.0,0.02100332]
[1643958279143,0.18005622,38204.0,38202.0,0.02100332]
[1643958279343,0.44228869,38204.0,38202.0,0.02100332]
[1643958279748,0.0777489,38210.0,38203.0,0.344935]
[1643958279944,0.0777489,38210.0,38204.0,0.344935]
[1643958279945,0.0295489,38210.0,38204.0,0.344935]
[1643958280145,0.04991745,38211.0,38204.0,0.344935]
[1643958280347,0.05260181,38209.0,38202.0,0.40246948]
[1643958280545,0.26010845,38208.0,38202.0,0.40246948]
[1643958280745,0.26010845,38208.0,38203.0,1.91652459]
[1643958280746,0.34670738,38205.0,38203.0,1.91652459]
[1643958280945,0.00268436,38209.0,38202.0,0.38146616]
[1643958280946,0.210191,38204.0,38202.0,0.38146616]
[1643958281246,0.00268436,38209.0,38200.0,0.00102906]
[1643958281247,0.04991745,38207.0,38200.0,0.00102906]
[1643958281493,0.36004365,38207.0,38192.0,0.83898775]
[1643958281694,0.04991745,38207.0,38200.0,0.00102902]
[1643958281893,0.09991745,38207.0,38200.0,0.00102902]
[1643958282094,0.08234725,38203.0,38200.0,0.00102902]
[1643958282296,0.08234725,38203.0,38201.0,0.344935]
[1643958282493,0.18234725,38203.0,38201.0,0.344935]
[1643958282692,0.2853861,38202.0,38197.0,0.14761819]
[1643958282892,0.2853861,38202.0,38200.0,0.00102901]
[1643958282893,0.33530355,38202.0,38200.0,0.00102901]
[1643958283096,0.33530355,38202.0,38201.0,0.344935]
[1643958283494,0.33530355,38202.0,38200.0,0.00102901]
[1643958283495,0.2853861,38202.0,38200.0,0.00102901]
[1643958283695,0.2853861,38202.0,38201.0,0.344935]
[1643958284095,0.33530355,38202.0,38201.0,0.344935]
[1643958284296,0.64817891,38202.0,38200.0,0.00102901]
[1643958284496,0.58052056,38201.0,38200.0,0.00102901]
[1643958284697,0.67872056,38201.0,38200.0,0.00102901]
[1643958284900,0.67872056,38201.0,38192.0,0.8431046]
[1643958284901,0.82872056,38201.0,38192.0,0.8431046]
[1643958285150,0.82872056,38201.0,38192.0,0.83898775]
[1643958285151,0.14691964,38193.0,38192.0,0.83898775]
[1643958285353,0.14691964,38193.0,38192.0,8.775e-05]
[1643958285354,0.75406562,38193.0,38192.0,8.775e-05]
[1643958285551,0.85406562,38193.0,38192.0,8.775e-05]
[1643958285750,0.50531064,38193.0,38192.0,8.775e-05]
[1643958286149,0.7594331,38193.0,38192.0,8.775e-05]
[1643958286352,0.7094331,38193.0,38192.0,8.775e-05]
[1643958286550,0.51251346,38193.0,38192.0,8.775e-05]
[1643958286750,0.48251346,38193.0,38192.0,0.15054365]
[1643958286950,0.0182,38193.0,38192.0,0.15054365]
[1643958287150,0.0182,38193.0,38192.0,0.49547865]
[1643958287351,0.00268436,38193.0,38192.0,0.49547865]
[1643958288451,0.00042582,38203.0,38193.0,1.45]
[1643958288753,0.01810773,38204.0,38194.0,0.344935]
[1643958289000,0.00102811,38203.0,38201.0,0.344935]
[1643958289401,0.24664476,38202.0,38201.0,0.344935]
[1643958289598,0.45683576,38202.0,38200.0,0.1472114]
[1643958289798,0.24664476,38202.0,38201.0,0.344935]
[1643958291599,0.24664476,38202.0,38198.0,0.00102828]
[1643958291600,0.210191,38201.0,38198.0,0.00102828]
[1643958291800,0.04991745,38200.0,38198.0,0.00102828]
[1643958292000,0.210191,38199.0,38198.0,0.00102828]
[1643958292201,0.260191,38199.0,38198.0,0.00102828]
[1643958292399,0.260191,38199.0,38192.0,8.775e-05]
[1643958292400,0.42528784,38199.0,38192.0,8.775e-05]
[1643958292646,0.35546756,38193.0,38192.0,8.775e-05]
[1643958292849,0.45546756,38193.0,38192.0,8.775e-05]
[1643958293045,0.74332017,38193.0,38192.0,8.775e-05]
[1643958293545,0.59796106,38193.0,38192.0,8.775e-05]
[1643958293745,0.38777006,38193.0,38192.0,8.775e-05]
[1643958294346,0.59796106,38193.0,38192.0,8.775e-05]
[1643958294545,0.4665755,38193.0,38192.0,8.775e-05]
[1643958294745,0.5165755,38193.0,38192.0,8.775e-05]
[1643958294947,0.7267665,38193.0,38192.0,8.775e-05]
[1643958295546,0.7217665,38193.0,38192.0,8.775e-05]
[1643958296248,0.67184905,38193.0,38192.0,8.775e-05]
[1643958296711,0.62684905,38193.0,38192.0,8.775e-05]
[1643958296914,0.62684905,38193.0,38185.0,0.00411413]
[1643958297116,1.45,38185.0,38171.0,0.01]
[1643958297327,0.14760879,38172.0,38171.0,0.01]
[1643958297516,0.43482398,38172.0,38171.0,0.01]
[1643958297713,0.24580879,38172.0,38171.0,0.01]
[1643958297917,0.29811745,38172.0,38171.0,0.01]
[1643958298312,0.29811745,38172.0,38164.0,0.05]
[1643958298313,0.275727,38170.0,38164.0,0.05]
[1643958298513,0.04991745,38165.0,38163.0,0.15962887]
[1643958298713,0.04991745,38165.0,38162.0,0.072]
[1643958298714,0.210191,38164.0,38162.0,0.072]
[1643958299411,0.04991745,38163.0,38162.0,0.072]
[1643958299612,0.62008962,38163.0,38162.0,0.072]
[1643958299916,0.62008962,38163.0,38161.0,0.01]
[1643958299917,0.88831875,38163.0,38161.0,0.01]
[1643958300156,0.57309488,38162.0,38161.0,0.01]
[1643958300352,0.57309488,38162.0,38155.0,0.05]
[1643958300353,1.45,38161.0,38155.0,0.05]
[1643958300557,0.06556552,38159.0,38154.0,0.00488418]
[1643958300753,0.51003953,38155.0,38154.0,0.00488418]
[1643958301053,0.09267311,38151.0,38149.0,0.00410095]
[1643958301254,0.35830845,38150.0,38145.0,0.01398513]
[1643958301457,0.08868229,38143.0,38141.0,0.01]
[1643958301656,0.04991745,38146.0,38141.0,0.5172]
[1643958301657,0.0482,38145.0,38141.0,0.5172]
[1643958301856,0.26010845,38142.0,38141.0,0.5172]
[1643958302056,0.26010845,38142.0,38141.0,0.01]
[1643958302458,0.25922151,38142.0,38141.0,0.01]
[1643958302860,0.3032417,38146.0,38141.0,0.01]
[1643958302861,0.13115,38149.0,38141.0,0.01]
[1643958303063,0.210191,38148.0,38147.0,0.00096949]
[1643958303260,0.09723051,38150.0,38147.0,0.344935]
[1643958303758,0.09723051,38150.0,38145.0,0.00096949]